bitfinex/quotes_SOLUSD_20251124
["timestamp","ask_amount","ask_price","bid_price","bid_amount"]
[1763949137972,0.70624709,131.23,131.22,3.44]
[1763949138269,0.70624709,131.23,131.19,12.99416837]
[1763949138471,0.16624709,131.23,131.22,9.55416837]
[1763949138670,0.16624709,131.23,131.22,12.99416837]
[1763949139385,0.70624709,131.23,131.22,3.44]
[1763949139568,0.70624709,131.23,131.2,12.99416837]
[1763949139769,0.54,131.22,131.2,3.44]
[1763949140472,0.54,131.22,131.18,12.99416837]
[1763949140787,0.54,131.22,131.2,9.55416837]
[1763949142091,0.16624709,131.23,131.21,12.99416837]
[1763949142311,0.16624709,131.23,131.22,9.55416837]
[1763949142673,0.16624709,131.23,131.22,5.58493842]
[1763949143578,0.16624709,131.23,131.22,6.25493842]
[1763949143773,0.16624709,131.23,131.22,5.58493842]
[1763949143983,0.70624709,131.23,131.21,3.44]
[1763949144296,6.29118551,131.23,131.18,9.02493842]
[1763949144470,0.54,131.22,131.18,9.02493842]
[1763949144668,0.54,131.22,131.18,3.44]
[1763949144669,5.58493842,131.19,131.18,3.44]
[1763949144880,5.58493842,131.19,131.1,5.58493842]
[1763949144881,18.12096,131.16,131.1,5.58493842]
[1763949145071,5.58493842,131.14,131.09,5.58493842]
[1763949145274,5.58493842,131.14,131.08,9.02493842]
[1763949145591,5.58493842,131.11,131.01,26.17339866]
[1763949145893,18.12096,131.12,131.07,5.58493842]
[1763949146087,0.54,131.11,131.07,5.58493842]
[1763949146282,0.54,131.11,131.08,5.58493842]
[1763949146792,0.54,131.11,131.06,3.44]
[1763949146980,0.54,131.11,131.07,5.58493842]
[1763949147888,0.54,131.11,131.08,5.58493842]
[1763949148088,0.54,131.14,131.1,5.58493842]
[1763949148391,0.54,131.14,131.11,5.58493842]
[1763949148568,0.54,131.14,131.1,3.44]
[1763949148770,0.54,131.14,131.1,9.02493842]
[1763949148969,0.54,131.14,131.1,3.44]
[1763949148970,6.12493842,131.14,131.1,3.44]
[1763949149166,6.12493842,131.14,131.08,5.58493842]
[1763949149390,0.54,131.13,131.09,5.58493842]
[1763949149594,0.54,131.13,131.1,5.58493842]
[1763949149897,0.54,131.13,131.07,11.06947733]
[1763949149898,0.54,131.13,131.08,5.58493842]
[1763949150480,6.12493842,131.13,131.08,5.58493842]
[1763949150891,0.54,131.12,131.08,5.58493842]
[1763949151981,0.54,131.12,131.08,13.21386381]
[1763949152185,0.54,131.12,131.09,5.58493842]
[1763949152890,0.16041103,131.1,131.09,5.58493842]
[1763949154483,0.16041103,131.1,131.07,3.44]
[1763949154891,0.16041103,131.1,131.07,11.73922119]
[1763949155289,0.16041103,131.1,131.07,11.06922119]
[1763949155500,0.16041103,131.1,131.08,5.58493842]
[1763949155710,0.70041103,131.1,131.07,3.44]
[1763949155911,0.54,131.09,131.07,3.44]
[1763949156802,0.54,131.09,131.04,5.58493842]
[1763949157005,6.12493842,131.09,131.04,5.58493842]
[1763949157302,0.54,131.09,131.06,5.58493842]
[1763949157600,0.54,131.08,131.03,9.02493842]
[1763949157801,5.58493842,131.05,131.0,5.58493842]
[1763949158007,0.54,131.04,131.0,5.58493842]
[1763949158806,0.54,131.08,131.03,5.58493842]
[1763949159100,0.54,131.08,131.04,5.58493842]
[1763949159293,0.54,131.08,131.03,9.02493842]
[1763949159603,6.12493842,131.08,131.03,3.44]
[1763949160493,6.12493842,131.07,131.03,3.44]
[1763949160696,0.54,131.07,131.03,3.44]
[1763949161207,0.54,131.07,131.01,23.70589842]
[1763949161507,6.12493842,131.07,131.02,5.58493842]
[1763949161699,0.54,131.07,131.03,5.58493842]
[1763949162006,0.54,131.06,131.03,5.58493842]
[1763949162890,0.54,131.06,131.01,25.75380917]
[1763949163083,0.54,131.06,131.02,5.58493842]
[1763949163988,6.12493842,131.06,131.0,3.44]
[1763949164321,5.58493842,131.05,131.0,3.44]
[1763949164508,6.12493842,131.05,131.0,3.44]
[1763949164691,2.95354335,131.09,131.0,3.44]
[1763949164692,0.54,131.04,131.0,3.44]
[1763949164888,23.70589842,131.07,131.02,5.58493842]
[1763949165208,0.54,131.06,131.02,5.58493842]
[1763949165807,5.58493842,131.05,131.0,3.44]
[1763949166013,0.54,131.06,131.0,3.44]
[1763949166014,5.58493842,131.04,131.0,3.44]
[1763949166386,0.54,131.03,131.0,3.44]
[1763949166619,18.12096,131.07,131.0,9.02493842]
[1763949166620,0.54,131.06,131.0,9.02493842]
[1763949166914,6.12493842,131.06,131.01,5.58493842]
[1763949167088,5.58493842,131.05,131.01,18.12096]
[1763949167293,6.12493842,131.05,131.01,18.12096]
[1763949167503,0.54,131.04,131.0,9.02493842]
[1763949167905,0.95368886,131.07,131.01,5.58493842]
[1763949168109,0.54,131.04,131.01,5.58493842]
[1763949168514,0.54,131.06,131.01,6.28493842]
[1763949168814,0.54,131.05,131.02,5.58493842]
[1763949169010,0.54,131.07,131.03,5.58493842]
[1763949169805,5.58493842,131.06,131.01,5.58493842]
[1763949170112,7.07862728,131.07,131.01,5.58493842]
[1763949170408,0.54,131.06,131.01,5.58493842]
[1763949171007,0.54,131.06,131.0,66.24]
[1763949171190,0.54,131.06,131.01,5.58493842]
[1763949171191,6.12493842,131.06,131.01,5.58493842]
[1763949171390,7.07870005,131.06,131.01,5.58493842]
[1763949171594,0.54,131.05,131.01,5.58493842]
[1763949171813,0.95361611,131.08,131.02,0.7]
[1763949172019,7.07855453,131.08,131.03,5.58493842]
[1763949172317,7.07855453,131.08,131.04,5.58493842]
[1763949172318,0.54,131.08,131.04,5.58493842]
[1763949172904,0.15947902,131.05,131.04,3.44]
[1763949173111,0.15947902,131.05,131.04,11.07125763]
[1763949173413,0.15947902,131.05,131.04,3.44]
[1763949173619,0.15947902,131.05,131.04,4.14]
[1763949174201,0.15947902,131.05,131.04,9.72493842]
[1763949175704,0.15947902,131.05,131.04,17.73407433]
[1763949175905,0.15947902,131.05,131.04,35.85503433]
[1763949176512,0.16694276,131.06,131.04,41.43997275]
[1763949176718,0.16694276,131.06,131.05,24.40589842]
[1763949177519,0.16694276,131.06,131.05,32.03657373]
[1763949178397,0.1500092,131.08,131.06,0.7]
[1763949178598,0.14686423,131.12,131.07,27.14589842]
[1763949178823,0.14686423,131.12,131.1,23.70589842]
[1763949179007,0.14686423,131.12,131.1,27.84589842]
[1763949179411,0.14686423,131.12,131.1,35.47366348]
[1763949180195,0.14686423,131.12,131.1,27.84589842]
[1763949180400,0.14686423,131.12,131.1,35.47366348]
[1763949180596,0.14686423,131.12,131.08,18.12096]
[1763949180597,0.8368705,131.11,131.08,18.12096]
[1763949180822,0.1668705,131.11,131.1,5.58493842]
[1763949181011,0.1668705,131.11,131.09,21.56096]
[1763949181218,0.1668705,131.11,131.1,5.58493842]
[1763949181518,0.1668705,131.11,131.09,21.56096]
[1763949181705,0.1668705,131.11,131.1,5.58493842]
[1763949182906,0.8368705,131.11,131.09,3.44]
[1763949183431,0.1668705,131.11,131.1,5.58493842]
[1763949183602,0.1668705,131.11,131.1,6.28493842]
[1763949184100,0.1668705,131.11,131.1,13.91270348]
[1763949184422,0.1668705,131.11,131.1,5.58493842]
[1763949184603,0.1668705,131.11,131.1,13.21270348]
[1763949185199,0.1668705,131.11,131.1,13.91270348]
[1763949185402,0.1668705,131.11,131.1,32.03366348]
[1763949185826,0.1668705,131.11,131.1,13.91270348]
[1763949186031,0.14686423,131.12,131.11,18.12096]
[1763949186207,0.14686423,131.12,131.11,24.40589842]
[1763949187112,0.16207494,131.13,131.11,24.40589842]
[1763949187318,0.16207494,131.13,131.12,15.30987684]
[1763949187518,0.67,131.2,131.15,18.12096]
[1763949187717,0.67,131.2,131.18,5.58493842]
[1763949188515,0.67,131.2,131.16,3.44]
[1763949188721,0.67,131.2,131.17,5.58493842]
[1763949189017,0.95245352,131.24,131.17,0.7]
[1763949189212,0.67,131.22,131.19,5.58493842]
[1763949189410,0.67,131.22,131.18,5.58493842]
[1763949189720,0.67,131.22,131.2,5.58493842]
[1763949190515,0.67,131.22,131.19,9.02493842]
[1763949191313,0.67,131.22,131.2,5.58493842]
[1763949191830,0.67,131.25,131.21,5.58493842]
[1763949192031,0.67,131.25,131.2,8.321814]
[1763949192032,0.67,131.24,131.2,8.321814]
[1763949192326,0.67,131.24,131.21,5.58493842]
[1763949192514,0.67,131.24,131.19,3.44]
[1763949192515,0.67,131.24,131.2,5.58493842]
[1763949192711,6.53746451,131.23,131.16,21.56096]
[1763949192921,0.15524376,131.21,131.18,5.58493842]
[1763949193427,0.67,131.2,131.17,5.58493842]
[1763949193633,0.67,131.2,131.18,5.58493842]
[1763949195730,0.67,131.2,131.16,21.56096]
[1763949195913,6.25493842,131.2,131.16,3.44]
[1763949196228,0.95281652,131.19,131.16,3.44]
[1763949196429,1.66281652,131.19,131.16,3.44]
[1763949196626,0.71,131.18,131.16,9.02493842]
[1763949196837,0.71,131.2,131.17,5.58493842]
[1763949197330,0.71,131.2,131.16,3.44]
[1763949197331,1.6627439,131.2,131.16,3.44]
[1763949197512,19.7837039,131.2,131.16,3.44]
[1763949197829,0.71,131.19,131.16,9.02493842]
[1763949199133,0.71,131.19,131.16,3.44]
[1763949199313,0.71,131.19,131.16,9.02493842]
[1763949200127,0.71,131.19,131.16,3.44]
[1763949200721,18.27620376,131.21,131.16,3.44]
[1763949200924,0.71,131.19,131.17,5.58493842]
[1763949201123,0.71,131.19,131.16,9.02493842]
[1763949201457,0.71,131.19,131.16,3.44]
[1763949201910,0.71,131.19,131.15,5.58493842]
[1763949203831,0.71,131.19,131.16,5.58493842]
[1763949204038,18.98620376,131.21,131.17,5.58493842]
[1763949204211,0.71,131.2,131.17,5.58493842]
[1763949204534,0.71,131.2,131.17,9.5163323]
[1763949205139,0.71,131.2,131.15,8.33481875]
[1763949205140,0.15524376,131.21,131.15,7.62481875]
[1763949205354,0.15524376,131.21,131.18,9.5163323]
[1763949205653,0.15524376,131.21,131.19,9.5163323]
[1763949205845,0.86524376,131.21,131.19,9.5163323]
[1763949206049,0.86524376,131.21,131.18,9.5163323]
[1763949208972,0.86524376,131.21,131.16,3.42]
[1763949209249,0.86524376,131.21,131.17,9.5163323]
[1763949209927,0.86524376,131.21,131.18,9.5163323]
[1763949211139,0.15524376,131.21,131.19,9.5163323]
[1763949211446,0.15524376,131.21,131.2,9.5163323]
[1763949212048,0.15524376,131.21,131.2,10.2263323]
[1763949212940,0.3117573,131.21,131.2,10.2263323]
[1763949213863,0.3117573,131.21,131.19,3.42]
[1763949213864,0.86651354,131.21,131.19,3.42]
[1763949214039,0.15651354,131.21,131.2,9.5163323]
[1763949214353,0.15651354,131.21,131.2,10.2263323]
[1763949214852,0.15651354,131.21,131.2,17.84828351]
[1763949218953,0.15651354,131.21,131.19,12.9363323]
[1763949219259,0.71,131.2,131.19,3.42]
[1763949219637,0.15651354,131.21,131.19,3.42]
[1763949219840,0.86651354,131.21,131.19,3.42]
[1763949220054,0.86651354,131.21,131.16,18.12096]
[1763949220264,10.38284584,131.21,131.16,9.5163323]
[1763949220471,10.38284584,131.21,131.16,3.42]
[1763949220675,0.71,131.2,131.16,3.42]
[1763949220974,10.2263323,131.2,131.16,3.42]
[1763949221151,9.5163323,131.19,131.16,3.42]
[1763949221350,10.2263323,131.19,131.13,9.5163323]
[1763949221559,0.71,131.18,131.14,3.42]
[1763949221965,10.2263323,131.18,131.14,3.42]
[1763949222344,0.71,131.17,131.14,3.42]
[1763949222950,0.71,131.19,131.15,9.5163323]
[1763949223175,0.71,131.18,131.14,13.6463323]
[1763949223586,10.2163323,131.2,131.15,10.1963323]
[1763949223749,0.15651354,131.21,131.15,0.68]
[1763949223951,0.15651354,131.21,131.18,9.5163323]
[1763949224151,0.15651354,131.21,131.18,12.9363323]
[1763949224351,0.15651354,131.21,131.18,13.6163323]
[1763949224575,0.15651354,131.21,131.19,9.5163323]
[1763949225356,0.15651354,131.21,131.2,10.1963323]
[1763949226580,0.15651354,131.21,131.2,90.4172923]
[1763949226883,0.15949699,131.22,131.21,9.5163323]
[1763949227074,0.15949699,131.22,131.21,14.03173883]
[1763949227252,0.16331011,131.23,131.21,21.65310915]
[1763949227457,0.16655584,131.24,131.22,28.3572923]
[1763949227656,0.16655584,131.24,131.23,9.5163323]
[1763949227966,0.16655584,131.24,131.23,10.2363323]
[1763949228164,0.16655584,131.24,131.23,10.61144846]
[1763949228475,0.16655584,131.24,131.23,18.23165725]
[1763949229460,0.16655584,131.24,131.23,27.74798955]
[1763949229653,1e-08,131.24,131.23,27.74798955]
[1763949230173,1e-08,131.24,131.23,28.3572923]
[1763949230576,1e-08,131.24,131.23,18.84096]
[1763949230758,1e-08,131.24,131.23,28.3572923]
[1763949231164,1e-08,131.24,131.23,35.97750109]
[1763949232278,1e-08,131.24,131.23,27.6372923]
[1763949232460,1e-08,131.24,131.23,28.3572923]
[1763949232653,1e-08,131.24,131.23,35.97750109]
[1763949232961,0.14510492,131.24,131.23,28.3572923]
[1763949233281,0.14510492,131.24,131.23,35.97750109]
[1763949233491,0.14510492,131.24,131.23,36.35261725]
[1763949233669,0.14510491,131.24,131.23,36.35261725]
[1763949234787,0.14510491,131.24,131.23,45.86894955]
[1763949235757,0.14510491,131.24,131.23,36.35261725]
[1763949236677,0.14510491,131.24,131.23,45.86894955]
[1763949236883,1e-08,131.24,131.23,27.74798955]
[1763949237177,0.16163719,131.32,131.26,18.12096]
[1763949237397,0.16163719,131.32,131.24,0.72]
[1763949237398,1e-08,131.3,131.29,27.6372923]
[1763949237593,1e-08,131.3,131.29,32.39163688]
[1763949237773,0.16163719,131.32,131.31,7.61556621]
[1763949237971,0.16163719,131.32,131.31,20.55189851]
[1763949238169,2.95100425,131.44,131.34,18.12096]
[1763949238482,0.95114898,131.42,131.36,9.5163323]
[1763949238786,9.5163323,131.41,131.36,9.5163323]
[1763949239182,0.95114898,131.42,131.35,3.42]
[1763949239391,10.46755366,131.41,131.36,9.5163323]
[1763949239690,9.5163323,131.42,131.37,9.5163323]
[1763949239982,9.5163323,131.42,131.34,18.84096]
[1763949239983,0.0768231,131.43,131.39,9.5163323]
[1763949240187,0.66,131.42,131.39,9.5163323]
[1763949240609,0.7368231,131.43,131.4,9.5163323]
[1763949240806,10.2531554,131.43,131.38,3.4]
[1763949241097,10.2531554,131.43,131.36,12.9163323]
[1763949241098,10.46748128,131.42,131.36,12.9163323]
[1763949241265,1.61114898,131.42,131.36,3.4]
[1763949241589,0.66,131.41,131.37,9.5163323]
[1763949241891,1.61122136,131.41,131.36,12.9163323]
[1763949242067,10.1763323,131.41,131.36,3.4]
[1763949242266,0.66,131.4,131.37,9.5163323]
[1763949242462,9.5931554,131.43,131.38,9.5163323]
[1763949242772,0.66,131.42,131.39,9.5163323]
[1763949242982,0.66,131.42,131.39,12.9163323]
[1763949243690,0.0768231,131.43,131.4,9.5163323]
[1763949243902,0.0768231,131.43,131.41,9.5163323]
[1763949244091,0.7368231,131.43,131.39,12.9163323]
[1763949244268,0.7368231,131.43,131.39,3.4]
[1763949244663,9.5163323,131.42,131.39,3.4]
[1763949245088,0.66,131.41,131.39,3.4]
[1763949245771,0.66,131.41,131.37,9.5163323]
[1763949246801,9.5163323,131.4,131.33,0.72]
[1763949246990,9.5163323,131.39,131.33,3.4]
[1763949247299,0.95143857,131.38,131.34,9.5163323]
[1763949247505,0.66,131.38,131.34,9.5163323]
[1763949247793,0.66,131.37,131.34,9.5163323]
[1763949248386,0.66,131.37,131.33,3.4]
[1763949248592,0.66,131.37,131.33,12.9163323]
[1763949248788,10.1763323,131.37,131.33,3.4]
[1763949248975,9.5163323,131.36,131.31,9.5163323]
[1763949249178,9.5163323,131.36,131.3,12.9163323]
[1763949249179,9.5163323,131.35,131.3,12.9163323]
[1763949249481,0.66,131.34,131.3,4.12]
[1763949249686,0.66,131.34,131.3,13.6363323]
[1763949250262,0.66,131.34,131.3,12.9163323]
[1763949250491,0.66,131.34,131.31,9.5163323]
[1763949250871,1.99999999,131.38,131.3,12.9163323]
[1763949251070,0.66,131.37,131.33,9.5163323]
[1763949251984,10.1763323,131.37,131.31,9.5163323]
[1763949252194,9.5163323,131.36,131.31,9.5163323]
[1763949252372,0.66,131.35,131.31,9.5163323]
[1763949252918,0.15247229,131.33,131.32,9.5163323]
[1763949254909,0.15247229,131.33,131.3,4.12]
[1763949255096,0.15247229,131.33,131.32,9.5163323]
[1763949255476,0.15247229,131.33,131.32,10.2363323]
[1763949256306,0.15247229,131.33,131.32,17.85131859]
[1763949256805,0.15247229,131.33,131.32,10.2363323]
[1763949258726,0.81247229,131.33,131.3,62.1]
[1763949258898,0.81247229,131.33,131.28,75.0163323]
[1763949259102,0.81247229,131.33,131.28,65.5]
[1763949259302,0.81247229,131.33,131.29,9.5163323]
[1763949259602,0.81247229,131.33,131.28,12.9163323]
[1763949260414,0.81247229,131.33,131.29,9.5163323]
[1763949262024,0.81247229,131.33,131.28,4.12]
[1763949262328,0.81247229,131.33,131.29,9.5163323]
[1763949262527,0.15247229,131.33,131.31,9.5163323]
[1763949262728,0.15247229,131.33,131.32,9.5163323]
[1763949262906,0.15247229,131.33,131.31,12.9163323]
[1763949263224,0.15247229,131.33,131.31,3.4]
[1763949263814,0.81247229,131.33,131.28,3.4]
[1763949264033,10.32880459,131.33,131.28,3.4]
[1763949264409,0.66,131.32,131.28,3.4]
[1763949264723,10.1763323,131.32,131.28,3.4]
[1763949265134,0.66,131.31,131.28,3.4]
[1763949265342,10.1763323,131.31,131.26,9.5163323]
[1763949265521,10.1763323,131.31,131.25,12.9163323]
[1763949265720,10.1763323,131.3,131.25,3.4]
[1763949266038,0.66,131.3,131.25,12.9163323]
[1763949266219,0.66,131.29,131.25,12.9163323]
[1763949266615,2.15247228,131.33,131.26,5.58287721]
[1763949266853,6.24287721,131.32,131.27,5.58287721]
[1763949267012,0.66,131.32,131.27,5.58287721]
[1763949267213,0.66,131.31,131.26,5.58287721]
[1763949267416,6.24287721,131.31,131.26,5.58287721]
[1763949267911,0.66,131.3,131.26,5.58287721]
[1763949268345,0.66,131.3,131.25,9.70287721]
[1763949268922,0.66,131.3,131.25,8.98287721]
[1763949268923,6.24287721,131.3,131.25,8.98287721]
[1763949269138,6.24287721,131.3,131.25,3.4]
[1763949269318,0.66,131.29,131.25,3.4]
[1763949269511,0.66,131.29,131.25,8.98287721]
[1763949270212,0.66,131.29,131.25,3.4]
[1763949270419,0.66,131.29,131.25,8.98287721]
[1763949270642,0.66,131.29,131.26,5.58287721]
[1763949272551,0.81247229,131.33,131.28,5.58287721]
[1763949272744,1.76427309,131.33,131.29,5.58287721]
[1763949272951,0.14379083,131.3,131.29,6.30287721]
[1763949273454,0.14379083,131.3,131.29,5.58287721]
[1763949273637,0.14379083,131.3,131.29,6.30287721]
[1763949274042,0.14379083,131.3,131.29,5.58287721]
[1763949275548,0.14379083,131.3,131.27,5.58287721]
[1763949275740,0.14379083,131.3,131.27,6.30287721]
[1763949275944,0.14379083,131.3,131.29,5.58287721]
[1763949276244,0.14379083,131.3,131.29,16.59960354]
[1763949276433,0.14379083,131.3,131.29,17.31960354]
[1763949277539,0.14379083,131.3,131.29,9.70287721]
[1763949277938,0.14379083,131.3,131.29,17.31960354]
[1763949279932,0.14379083,131.3,131.29,9.70287721]
[1763949280128,0.14379083,131.3,131.29,17.31960354]
[1763949281247,0.14379083,131.3,131.29,17.69384911]
[1763949281830,0.15462508,131.32,131.31,18.12096]
[1763949282153,0.15462508,131.32,131.31,29.66066997]
[1763949282347,0.15462508,131.32,131.31,37.99623618]
[1763949282849,0.15462508,131.32,131.31,32.41335897]
[1763949283355,0.15462508,131.32,131.31,32.03940342]
[1763949285338,0.15462508,131.32,131.29,4.07]
[1763949285537,0.15462508,131.32,131.31,5.58287721]
[1763949285835,0.81462508,131.32,131.25,0.71]
[1763949286036,5.58287721,131.31,131.25,3.4]
[1763949286260,0.66,131.3,131.22,0.71]
[1763949286561,6.24287721,131.3,131.25,5.58287721]
[1763949286859,5.58287721,131.29,131.24,5.58287721]
[1763949287067,5.58287721,131.29,131.23,3.4]
[1763949287068,5.58287721,131.27,131.22,5.58287721]
[1763949287252,5.58287721,131.26,131.2,5.58287721]
[1763949287558,20.78095999,131.28,131.2,5.58287721]
[1763949287762,0.66,131.27,131.2,5.58287721]
[1763949288735,0.66,131.27,131.22,5.58287721]
[1763949288934,6.24287721,131.27,131.21,5.58287721]
[1763949289149,6.24287721,131.27,131.22,5.58287721]
[1763949289347,0.66,131.26,131.22,5.58287721]
[1763949289567,0.66,131.26,131.23,5.58287721]
[1763949290154,0.66,131.28,131.24,5.58287721]
[1763949290348,0.66,131.28,131.25,5.58287721]
[1763949290547,0.66,131.28,131.24,5.58287721]
[1763949290872,0.66,131.28,131.22,0.71]
[1763949291036,6.24287721,131.28,131.23,5.58287721]
[1763949291453,0.66,131.27,131.24,5.58287721]
[1763949292764,0.14129147,131.25,131.24,5.58287721]
[1763949293146,0.14129147,131.25,131.23,4.11]
[1763949293466,0.14129147,131.25,131.24,5.58287721]
[1763949294240,0.14129147,131.25,131.23,9.69287721]
[1763949294471,0.14129147,131.25,131.23,8.98287721]
[1763949294767,0.14129147,131.25,131.23,9.69287721]
[1763949295151,0.14129147,131.25,131.23,11.02014894]
[1763949295359,0.14129147,131.25,131.24,6.29287721]
[1763949295766,0.14129147,131.25,131.23,3.4]
[1763949295943,0.14129147,131.25,131.23,8.98287721]
[1763949295944,0.80129147,131.25,131.23,8.98287721]
[1763949296144,0.14129147,131.25,131.23,8.98287721]
[1763949297763,0.14129147,131.25,131.24,5.58287721]
[1763949299165,0.14129147,131.25,131.23,3.4]
[1763949299473,0.80129147,131.25,131.22,5.58287721]
[1763949299675,0.80129147,131.25,131.2,4.11]
[1763949299864,0.80129147,131.25,131.22,5.58287721]
[1763949300693,0.80129147,131.25,131.21,0.71]
[1763949300694,0.14129147,131.25,131.21,18.12096]
[1763949300996,0.14129147,131.25,131.24,5.58287721]
[1763949301150,0.14129147,131.25,131.24,9.69287721]
[1763949301353,0.13746608,131.26,131.24,27.81383721]
[1763949301671,0.13803741,131.28,131.27,18.12096]
[1763949301859,0.13803741,131.28,131.27,27.10383721]
[1763949302181,0.14480487,131.31,131.27,27.10383721]
[1763949302367,0.14480487,131.31,131.29,5.58287721]
[1763949302553,0.14480487,131.31,131.29,13.19960354]
[1763949302755,0.15609112,131.33,131.3,29.99671442]
[1763949303064,0.15609112,131.33,131.32,18.12096]
[1763949303269,0.15609112,131.33,131.32,23.70383721]
[1763949303456,0.15609112,131.33,131.32,24.41383721]
[1763949304795,0.15609112,131.33,131.32,5.58287721]
[1763949304951,0.84609112,131.33,131.29,3.4]
[1763949305274,0.84609112,131.33,131.31,5.58287721]
[1763949305478,0.84609112,131.33,131.29,3.4]
[1763949305658,0.84609112,131.33,131.31,5.58287721]
[1763949306960,0.84609112,131.33,131.29,8.98287721]
[1763949307160,7.38076913,131.33,131.29,3.4]
[1763949307664,0.69,131.32,131.29,3.4]
[1763949307865,0.69,131.32,131.29,8.98287721]
[1763949309378,0.69,131.32,131.29,3.4]
[1763949311884,1.10789192,131.33,131.29,3.4]
[1763949311885,0.15609112,131.33,131.31,5.58287721]
[1763949312097,0.69,131.32,131.29,8.98287721]
[1763949312461,0.15609112,131.33,131.3,5.58287721]
[1763949312661,0.84609112,131.33,131.29,3.4]
[1763949312992,0.1487409,131.3,131.29,3.4]
[1763949313166,0.1487409,131.3,131.29,8.98287721]
[1763949313784,0.1487409,131.3,131.29,17.30960354]
[1763949314488,0.1487409,131.3,131.29,8.98287721]
[1763949315190,0.8387409,131.3,131.29,3.4]
[1763949315484,0.1487409,131.3,131.29,3.4]
[1763949315675,0.1487409,131.3,131.28,5.58287721]
[1763949316080,0.1487409,131.3,131.29,5.58287721]
[1763949317000,0.1487409,131.3,131.29,6.24287721]
[1763949317891,0.1487409,131.3,131.29,13.85960354]
[1763949318280,0.1487409,131.3,131.29,32.35480911]
[1763949318603,0.15843158,131.36,131.32,18.12096]
[1763949318775,0.15843158,131.36,131.34,13.19670391]
[1763949319305,0.15843158,131.36,131.34,13.85670391]
[1763949319471,0.14574463,131.38,131.36,18.12096]
[1763949319780,0.14574463,131.38,131.36,27.76383721]
[1763949319987,0.14574463,131.38,131.37,24.36383721]
[1763949320880,0.14574463,131.38,131.37,31.9759252]
[1763949322575,0.14574463,131.38,131.37,18.12096]
[1763949322786,0.14574463,131.38,131.37,24.36383721]
[1763949324217,0.14574463,131.38,131.37,31.9759252]
[1763949324513,0.16459392,131.39,131.37,31.9759252]
[1763949324718,0.16459392,131.39,131.38,6.24287721]
[1763949325992,0.0768231,131.43,131.41,18.12096]
[1763949326176,0.0768231,131.43,131.42,8.98287721]
[1763949326494,0.1,131.45,131.44,18.12096]
[1763949326680,0.1,131.45,131.44,27.59241848]
[1763949326880,0.1,131.45,131.44,28.25241848]
[1763949327117,0.1,131.52,131.44,37.72387696]
[1763949327299,0.1,131.52,131.45,4.06]
[1763949327611,0.81,131.52,131.45,22.18096]
[1763949327787,0.81,131.52,131.51,9.47145848]
[1763949327989,0.81,131.52,131.51,12.87145848]
[1763949328179,0.1,131.52,131.51,3.4]
[1763949328382,0.1,131.52,131.51,12.87145848]
[1763949329391,0.81,131.52,131.51,12.87145848]
[1763949329588,0.1,131.52,131.51,12.87145848]
[1763949329985,0.1,131.52,131.51,21.13544296]
[1763949330195,0.1,131.52,131.51,12.87145848]
[1763949330401,0.81,131.52,131.51,12.87145848]
[1763949330904,0.1,131.52,131.51,20.47544296]
[1763949331103,0.1,131.52,131.51,12.87145848]
[1763949331799,0.81,131.52,131.51,12.87145848]
[1763949332195,0.1,131.52,131.51,20.47544296]
[1763949332882,0.95238868,131.52,131.51,12.87145848]
[1763949333579,0.24238868,131.52,131.51,12.87145848]
[1763949333782,0.95238868,131.52,131.51,3.4]
[1763949335689,0.95238868,131.52,131.49,3.4]
[1763949336007,0.71,131.51,131.49,3.4]
[1763949337298,10.18145848,131.51,131.45,9.47145848]
[1763949337492,10.18145848,131.51,131.46,12.87145848]
[1763949337814,0.71,131.5,131.47,9.47145848]
[1763949338189,0.71,131.5,131.46,12.87145848]
[1763949338912,0.71,131.5,131.47,9.47145848]
[1763949339213,0.71,131.5,131.48,9.47145848]
[1763949339611,0.71,131.5,131.46,3.4]
[1763949339796,0.71,131.5,131.48,9.47145848]
[1763949339998,0.24238868,131.52,131.49,9.47145848]
[1763949340222,0.95238868,131.52,131.51,9.47145848]
[1763949340439,0.24238868,131.52,131.51,9.47145848]
[1763949340601,0.24238868,131.52,131.5,3.4]
[1763949340934,0.95238868,131.52,131.51,9.47145848]
[1763949341094,0.95238868,131.52,131.5,12.87145848]